[Event "*** SCC Grand Prix: Titled Tuesday Blitz"]
[Site "Chess.com"]
[Date "2020.06.23"]
[Round "7"]
[White "chesslh19"]
[Black "XxPetroffsxX"]
[Result "1-0"]
[WhiteElo "2130"]
[BlackElo "1916"]
[TimeControl "180+1"]
[EndTime "11:18:16 PDT"]
[Termination "chesslh19 won by resignation"]

1. e4 {[%clk 0:03:00.9]} 1... c6 {[%clk 0:03:00.2]} 2. d4 {[%clk 0:03:00.2]}
2... d5 {[%clk 0:02:59.6]} 3. Nd2 {[%clk 0:03:00.5]} 3... dxe4 {[%clk
0:02:57.9]} 4. Nxe4 {[%clk 0:02:59.6]} 4... Bf5 {[%clk 0:02:57.4]} 5. Ng3 {[%clk
0:02:58.6]} 5... Bg6 {[%clk 0:02:57.5]} 6. h4 {[%clk 0:02:59.3]} 6... h6 {[%clk
0:02:56.8]} 7. Nf3 {[%clk 0:03:00]} 7... Nd7 {[%clk 0:02:56.4]} 8. h5 {[%clk
0:03:00.6]} 8... Bh7 {[%clk 0:02:56.4]} 9. Bd3 {[%clk 0:03:01.3]} 9... Bxd3
{[%clk 0:02:56.9]} 10. Qxd3 {[%clk 0:03:02]} 10... e6 {[%clk 0:02:57]} 11. Bf4
{[%clk 0:02:59.8]} 11... Qa5+ {[%clk 0:02:55.7]} 12. Bd2 {[%clk 0:02:59.7]}
12... Qd8 {[%clk 0:02:54.4]} 13. O-O-O {[%clk 0:02:58]} 13... Bd6 {[%clk
0:02:54.5]} 14. Ne4 {[%clk 0:02:55.2]} 14... Be7 {[%clk 0:02:54.3]} 15. Kb1
{[%clk 0:02:52.2]} 15... Ngf6 {[%clk 0:02:54]} 16. Nxf6+ {[%clk 0:02:45.6]}
16... Nxf6 {[%clk 0:02:53.7]} 17. Ne5 {[%clk 0:02:43.1]} 17... Qb6 {[%clk
0:02:48.2]} 18. Bc1 {[%clk 0:02:07.5]} 18... Rd8 {[%clk 0:02:45.1]} 19. f4
{[%clk 0:01:43.8]} 19... c5 {[%clk 0:02:39.9]} 20. dxc5 {[%clk 0:01:06.4]} 20...
Qxc5 {[%clk 0:02:22]} 21. Qe2 {[%clk 0:01:00.6]} 21... O-O {[%clk 0:02:16.5]}
22. g4 {[%clk 0:00:55.5]} 22... Nd5 {[%clk 0:02:06.7]} 23. g5 {[%clk 0:00:34.8]}
23... hxg5 {[%clk 0:02:01.3]} 24. fxg5 {[%clk 0:00:34.7]} 24... Qb6 {[%clk
0:02:00.3]} 25. Qf3 {[%clk 0:00:24.3]} 25... Bd6 {[%clk 0:01:42.1]} 26. Nc4
{[%clk 0:00:20.6]} 26... Qc6 {[%clk 0:01:36.5]} 27. Nxd6 {[%clk 0:00:19.7]}
27... Rxd6 {[%clk 0:01:35.8]} 28. h6 {[%clk 0:00:19.5]} 28... g6 {[%clk
0:01:22.5]} 29. h7+ {[%clk 0:00:19.4]} 29... Kh8 {[%clk 0:01:21.8]} 30. c4
{[%clk 0:00:15.2]} 30... Qxc4 {[%clk 0:01:17.6]} 31. b3 {[%clk 0:00:12.2]} 31...
Nc3+ {[%clk 0:00:59.1]} 32. Kc2 {[%clk 0:00:09.6]} 32... Qe4+ {[%clk 0:00:53.7]}
33. Qxe4 {[%clk 0:00:08.1]} 33... Nxe4 {[%clk 0:00:54]} 34. Bb2+ {[%clk
0:00:08.4]} 34... f6 {[%clk 0:00:50.4]} 35. Rxd6 {[%clk 0:00:08.4]} 35... Nxd6
{[%clk 0:00:49.5]} 36. Bxf6+ {[%clk 0:00:08.6]} 36... Rxf6 {[%clk 0:00:49.7]}
37. gxf6 {[%clk 0:00:09.3]} 37... Nf7 {[%clk 0:00:46.9]} 38. Kd3 {[%clk
0:00:09.4]} 38... Ng5 {[%clk 0:00:43.3]} 39. Kd4 {[%clk 0:00:08.8]} 39... Nf7
{[%clk 0:00:40.8]} 40. Ke4 {[%clk 0:00:08.5]} 40... b6 {[%clk 0:00:39.2]} 41. a4
{[%clk 0:00:08.2]} 41... a5 {[%clk 0:00:35.8]} 42. Kf4 {[%clk 0:00:08.7]} 42...
e5+ {[%clk 0:00:27.8]} 43. Ke4 {[%clk 0:00:08.8]} 43... g5 {[%clk 0:00:27.3]}
44. Kf5 {[%clk 0:00:09]} 44... g4 {[%clk 0:00:27.3]} 45. Kxg4 {[%clk 0:00:09]}
45... b5 {[%clk 0:00:25.9]} 46. axb5 {[%clk 0:00:08.7]} 46... a4 {[%clk
0:00:26.1]} 47. bxa4 {[%clk 0:00:09]} 47... e4 {[%clk 0:00:24.4]} 48. b6 {[%clk
0:00:08.8]} 48... e3 {[%clk 0:00:24.8]} 49. b7 {[%clk 0:00:09.3]} 49... e2
{[%clk 0:00:21]} 50. b8=Q+ {[%clk 0:00:09.5]} 1-0

[Event "*** SCC Grand Prix: Titled Tuesday Blitz"]
[Site "Chess.com"]
[Date "2020.06.23"]
[Round "7"]
[White "c63_amg"]
[Black "simplerXiao"]
[Result "0-1"]
[WhiteElo "2734"]
[BlackElo "2463"]
[TimeControl "180+1"]
[EndTime "11:18:23 PDT"]
[Termination "simplerXiao won on time"]

1. e4 {[%clk 0:03:00.9]} 1... e6 {[%clk 0:02:57.6]} 2. d4 {[%clk 0:03:00.3]}
2... d5 {[%clk 0:02:57.7]} 3. Nc3 {[%clk 0:03:00.8]} 3... dxe4 {[%clk
0:02:57.2]} 4. Nxe4 {[%clk 0:02:58.8]} 4... Bd7 {[%clk 0:02:57.5]} 5. Nf3 {[%clk
0:02:57.6]} 5... Bc6 {[%clk 0:02:57.1]} 6. Bd3 {[%clk 0:02:55.9]} 6... Nd7
{[%clk 0:02:57]} 7. O-O {[%clk 0:02:55.4]} 7... Ngf6 {[%clk 0:02:56.7]} 8. Ng3
{[%clk 0:02:55.9]} 8... Be7 {[%clk 0:02:55.3]} 9. Qe2 {[%clk 0:02:55.2]} 9...
Nb6 {[%clk 0:02:45.1]} 10. c3 {[%clk 0:02:24.9]} 10... Bxf3 {[%clk 0:02:30]} 11.
Qxf3 {[%clk 0:02:25.8]} 11... Qd5 {[%clk 0:02:25.4]} 12. Qe2 {[%clk 0:02:20.5]}
12... O-O {[%clk 0:02:10.6]} 13. Rd1 {[%clk 0:02:13.8]} 13... Rad8 {[%clk
0:02:00.9]} 14. c4 {[%clk 0:01:56.3]} 14... Qa5 {[%clk 0:01:54.4]} 15. a3 {[%clk
0:01:36.8]} 15... Qa4 {[%clk 0:01:48.6]} 16. Bg5 {[%clk 0:01:29.3]} 16... Kh8
{[%clk 0:01:46.5]} 17. d5 {[%clk 0:01:25.1]} 17... Nfxd5 {[%clk 0:01:31.8]} 18.
cxd5 {[%clk 0:01:03.4]} 18... Bxg5 {[%clk 0:01:30.7]} 19. dxe6 {[%clk 0:01:03]}
19... fxe6 {[%clk 0:01:24.1]} 20. Qxe6 {[%clk 0:00:48.5]} 20... Qf4 {[%clk
0:01:16.4]} 21. Ne4 {[%clk 0:00:33.8]} 21... Rde8 {[%clk 0:01:10.7]} 22. Qh3
{[%clk 0:00:20.4]} 22... Rxe4 {[%clk 0:01:02.2]} 23. Bxe4 {[%clk 0:00:17.2]}
23... Qxe4 {[%clk 0:01:01.8]} 24. Re1 {[%clk 0:00:15.9]} 24... Qf4 {[%clk
0:00:55.8]} 25. Re2 {[%clk 0:00:16.2]} 25... Nd5 {[%clk 0:00:41.7]} 26. Rae1
{[%clk 0:00:16.5]} 26... h6 {[%clk 0:00:39]} 27. Qd7 {[%clk 0:00:16.7]} 27...
Qf7 {[%clk 0:00:34.1]} 28. Qxf7 {[%clk 0:00:13]} 28... Rxf7 {[%clk 0:00:33.8]}
29. g3 {[%clk 0:00:13.9]} 29... Bf6 {[%clk 0:00:31]} 30. b3 {[%clk 0:00:11.2]}
30... Kh7 {[%clk 0:00:29.5]} 31. a4 {[%clk 0:00:11.4]} 31... c6 {[%clk
0:00:29.5]} 32. Re6 {[%clk 0:00:11.6]} 32... Rd7 {[%clk 0:00:26.8]} 33. Re8
{[%clk 0:00:11.4]} 33... Kg6 {[%clk 0:00:26]} 34. h4 {[%clk 0:00:11.7]} 34...
Kf7 {[%clk 0:00:25.8]} 35. Ra8 {[%clk 0:00:11.7]} 35... a6 {[%clk 0:00:24.8]}
36. Ree8 {[%clk 0:00:12.3]} 36... Nb4 {[%clk 0:00:20.3]} 37. Rf8+ {[%clk
0:00:11]} 37... Ke6 {[%clk 0:00:19.3]} 38. Kg2 {[%clk 0:00:11]} 38... Kf5 {[%clk
0:00:18.8]} 39. Rab8 {[%clk 0:00:07.5]} 39... h5 {[%clk 0:00:18.8]} 40. f3
{[%clk 0:00:07.6]} 40... a5 {[%clk 0:00:17.5]} 41. Kh3 {[%clk 0:00:07.9]} 41...
Nd5 {[%clk 0:00:17.3]} 42. Rbe8 {[%clk 0:00:07.7]} 42... Nc7 {[%clk 0:00:16.5]}
43. g4+ {[%clk 0:00:08.1]} 43... hxg4+ {[%clk 0:00:16.4]} 44. fxg4+ {[%clk
0:00:08.1]} 44... Kf4 {[%clk 0:00:16.3]} 45. Re2 {[%clk 0:00:06.9]} 45... Rd3+
{[%clk 0:00:16.1]} 46. Kg2 {[%clk 0:00:07.4]} 46... Kxg4 {[%clk 0:00:16.2]} 47.
Rf7 {[%clk 0:00:07.7]} 47... Nd5 {[%clk 0:00:15.4]} 48. Re4+ {[%clk 0:00:08.1]}
48... Nf4+ {[%clk 0:00:15.7]} 49. Kf2 {[%clk 0:00:08.5]} 49... Rxb3 {[%clk
0:00:16.3]} 50. Ke1 {[%clk 0:00:04.9]} 50... b5 {[%clk 0:00:15.4]} 51. axb5
{[%clk 0:00:04]} 51... cxb5 {[%clk 0:00:15.1]} 52. Kd2 {[%clk 0:00:04.9]} 52...
Rb4 {[%clk 0:00:14.8]} 53. Rxb4 {[%clk 0:00:02.1]} 53... axb4 {[%clk 0:00:14.5]}
54. Rb7 {[%clk 0:00:03]} 54... Bc3+ {[%clk 0:00:13.7]} 55. Kc2 {[%clk
0:00:02.3]} 55... Kxh4 {[%clk 0:00:14.6]} 56. Rxb5 {[%clk 0:00:02.5]} 56... g5
{[%clk 0:00:14.2]} 57. Rb7 {[%clk 0:00:02]} 57... Kg3 {[%clk 0:00:14.3]} 58. Kb3
{[%clk 0:00:01.5]} 58... g4 {[%clk 0:00:14.4]} 59. Rb5 {[%clk 0:00:02.1]} 59...
Kf3 {[%clk 0:00:14.1]} 60. Rb7 {[%clk 0:00:03]} 60... g3 {[%clk 0:00:14.2]} 0-1

[Event "*** SCC Grand Prix: Titled Tuesday Blitz"]
[Site "Chess.com"]
[Date "2020.06.23"]
[Round "7"]
[White "Roman_Ovetchkin"]
[Black "Phriex"]
[Result "0-1"]
[WhiteElo "2557"]
[BlackElo "2416"]
[TimeControl "180+1"]
[EndTime "11:18:26 PDT"]
[Termination "Phriex won on time"]

1. d4 {[%clk 0:03:00.9]} 1... d5 {[%clk 0:02:56.6]} 2. c4 {[%clk 0:03:00.1]}
2... e6 {[%clk 0:02:55]} 3. Nf3 {[%clk 0:02:59.8]} 3... Nf6 {[%clk 0:02:55]} 4.
g3 {[%clk 0:03:00.1]} 4... Bb4+ {[%clk 0:02:54.3]} 5. Bd2 {[%clk 0:02:59.6]}
5... Be7 {[%clk 0:02:54.5]} 6. Bg2 {[%clk 0:03:00.1]} 6... O-O {[%clk 0:02:55]}
7. O-O {[%clk 0:03:00.5]} 7... c6 {[%clk 0:02:55.5]} 8. Qc2 {[%clk 0:03:00.9]}
8... Nbd7 {[%clk 0:02:55.2]} 9. a3 {[%clk 0:02:51.5]} 9... a5 {[%clk 0:02:53.3]}
10. b3 {[%clk 0:02:45]} 10... b6 {[%clk 0:02:53]} 11. Bg5 {[%clk 0:02:31.4]}
11... Ne4 {[%clk 0:02:45.9]} 12. Bxe7 {[%clk 0:02:29.5]} 12... Qxe7 {[%clk
0:02:46.8]} 13. Nc3 {[%clk 0:02:26.7]} 13... Nxc3 {[%clk 0:02:43.7]} 14. Qxc3
{[%clk 0:02:26.4]} 14... Ba6 {[%clk 0:02:44.1]} 15. Rfe1 {[%clk 0:02:24.7]}
15... a4 {[%clk 0:02:38.9]} 16. e4 {[%clk 0:02:17.5]} 16... axb3 {[%clk
0:02:25.6]} 17. exd5 {[%clk 0:02:16.4]} 17... cxd5 {[%clk 0:02:25]} 18. cxd5
{[%clk 0:02:15]} 18... Rac8 {[%clk 0:02:23.4]} 19. Qb2 {[%clk 0:01:57.5]} 19...
Bc4 {[%clk 0:02:22.2]} 20. Nd2 {[%clk 0:01:54.3]} 20... Qd6 {[%clk 0:02:09.4]}
21. Nxc4 {[%clk 0:01:47.9]} 21... Rxc4 {[%clk 0:02:08.4]} 22. dxe6 {[%clk
0:01:47.1]} 22... fxe6 {[%clk 0:02:05.5]} 23. Qxb3 {[%clk 0:01:45.5]} 23... Qxd4
{[%clk 0:02:00.1]} 24. Qe3 {[%clk 0:01:22.3]} 24... Nc5 {[%clk 0:01:49.2]} 25.
Bh3 {[%clk 0:00:53]} 25... e5 {[%clk 0:01:40]} 26. Rad1 {[%clk 0:00:38.6]} 26...
Qxe3 {[%clk 0:01:24.5]} 27. Rxe3 {[%clk 0:00:35.7]} 27... e4 {[%clk 0:01:22.4]}
28. Rd2 {[%clk 0:00:21.9]} 28... Kh8 {[%clk 0:01:10.1]} 29. Kg2 {[%clk
0:00:18.5]} 29... Nd3 {[%clk 0:01:07.3]} 30. Be6 {[%clk 0:00:14]} 30... Rd4
{[%clk 0:00:59.7]} 31. Rc2 {[%clk 0:00:10.1]} 31... Nc5 {[%clk 0:00:54.8]} 32.
Bc4 {[%clk 0:00:09.5]} 32... Ra8 {[%clk 0:00:50.8]} 33. Be2 {[%clk 0:00:08.8]}
33... Rda4 {[%clk 0:00:45.2]} 34. Rb2 {[%clk 0:00:08.6]} 34... Rb8 {[%clk
0:00:32.2]} 35. f3 {[%clk 0:00:08.5]} 35... h6 {[%clk 0:00:23.1]} 36. fxe4
{[%clk 0:00:08]} 36... Nxe4 {[%clk 0:00:23.6]} 37. Bf3 {[%clk 0:00:07.4]} 37...
Nc5 {[%clk 0:00:20.4]} 38. Rc3 {[%clk 0:00:05]} 38... Ne6 {[%clk 0:00:12.7]} 39.
h4 {[%clk 0:00:03.7]} 39... Nd4 {[%clk 0:00:12.6]} 40. Be4 {[%clk 0:00:02.9]}
40... b5 {[%clk 0:00:12.5]} 41. Bg6 {[%clk 0:00:02.7]} 41... Ra6 {[%clk
0:00:11.6]} 42. h5 {[%clk 0:00:02.7]} 42... Rd6 {[%clk 0:00:10.4]} 43. Rd3
{[%clk 0:00:02.6]} 43... Rbd8 {[%clk 0:00:09.6]} 44. Rbd2 {[%clk 0:00:02.6]}
44... Kg8 {[%clk 0:00:06.7]} 45. Kh3 {[%clk 0:00:01.7]} 45... Kf8 {[%clk
0:00:06.8]} 46. Rf2+ {[%clk 0:00:01.9]} 46... Ke7 {[%clk 0:00:06.8]} 47. Re3+
{[%clk 0:00:01.4]} 47... Kd7 {[%clk 0:00:04]} 48. Rf7+ {[%clk 0:00:02.3]} 48...
Kc6 {[%clk 0:00:04.1]} 49. Rxg7 {[%clk 0:00:03.2]} 49... Ne6 {[%clk 0:00:03.4]}
50. Rc3+ {[%clk 0:00:03.7]} 50... Kd5 {[%clk 0:00:03.4]} 51. Rf7 {[%clk
0:00:03.5]} 51... Ng5+ {[%clk 0:00:03.9]} 52. Kg4 {[%clk 0:00:03.2]} 52... Nxf7
{[%clk 0:00:04.8]} 53. Bxf7+ {[%clk 0:00:02.4]} 53... Ke5 {[%clk 0:00:05.3]} 54.
Re3+ {[%clk 0:00:01.8]} 54... Kf6 {[%clk 0:00:05.5]} 0-1

[Event "*** SCC Grand Prix: Titled Tuesday Blitz"]
[Site "Chess.com"]
[Date "2020.06.23"]
[Round "7"]
[White "Fusikk"]
[Black "hansen"]
[Result "0-1"]
[WhiteElo "2549"]
[BlackElo "2972"]
[TimeControl "180+1"]
[EndTime "11:18:27 PDT"]
[Termination "hansen won by resignation"]

1. d4 {[%clk 0:03:00.9]} 1... Nf6 {[%clk 0:02:59.8]} 2. Nf3 {[%clk 0:03:00.4]}
2... g6 {[%clk 0:02:59.4]} 3. c4 {[%clk 0:03:00.3]} 3... Bg7 {[%clk 0:02:58]} 4.
Nc3 {[%clk 0:03:00.8]} 4... d5 {[%clk 0:02:58.2]} 5. Bg5 {[%clk 0:02:53.2]} 5...
Ne4 {[%clk 0:02:51.2]} 6. cxd5 {[%clk 0:02:52.9]} 6... Nxg5 {[%clk 0:02:48.9]}
7. Nxg5 {[%clk 0:02:53.8]} 7... e6 {[%clk 0:02:49.2]} 8. Nf3 {[%clk 0:02:54.2]}
8... exd5 {[%clk 0:02:49]} 9. e3 {[%clk 0:02:55.1]} 9... c6 {[%clk 0:02:48.9]}
10. Be2 {[%clk 0:02:52.8]} 10... a5 {[%clk 0:02:48.9]} 11. O-O {[%clk
0:02:51.6]} 11... O-O {[%clk 0:02:49.2]} 12. a3 {[%clk 0:02:51.1]} 12... Qd6
{[%clk 0:02:49.1]} 13. Na4 {[%clk 0:02:47.9]} 13... Nd7 {[%clk 0:02:48.5]} 14.
Qc2 {[%clk 0:02:45.5]} 14... Re8 {[%clk 0:02:48.9]} 15. Rfc1 {[%clk 0:02:41.5]}
15... Bf8 {[%clk 0:02:47.3]} 16. Ne1 {[%clk 0:02:39.4]} 16... Qf6 {[%clk
0:02:46]} 17. Nd3 {[%clk 0:02:35.4]} 17... Bd6 {[%clk 0:02:46.6]} 18. b4 {[%clk
0:02:30.7]} 18... axb4 {[%clk 0:02:47.5]} 19. axb4 {[%clk 0:02:31.6]} 19... Nf8
{[%clk 0:02:47.4]} 20. Nb6 {[%clk 0:02:26.3]} 20... Rxa1 {[%clk 0:02:46.4]} 21.
Rxa1 {[%clk 0:02:27.2]} 21... Bf5 {[%clk 0:02:46.4]} 22. Qc3 {[%clk 0:02:14.7]}
22... Ne6 {[%clk 0:02:33.2]} 23. Nd7 {[%clk 0:02:09.9]} 23... Qe7 {[%clk
0:02:27.1]} 24. N7c5 {[%clk 0:01:46.4]} 24... Ng5 {[%clk 0:02:24.6]} 25. Ra7
{[%clk 0:01:45.2]} 25... Bc8 {[%clk 0:02:24.2]} 26. Bf1 {[%clk 0:01:22.4]} 26...
Qc7 {[%clk 0:02:12.8]} 27. h3 {[%clk 0:01:16.6]} 27... Qe7 {[%clk 0:02:02.1]}
28. Ra8 {[%clk 0:01:04.5]} 28... Kg7 {[%clk 0:01:55.4]} 29. Ra7 {[%clk
0:01:04.1]} 29... Bb8 {[%clk 0:01:37]} 30. Ra8 {[%clk 0:01:04.1]} 30... Qd6
{[%clk 0:01:35.2]} 31. Nf4 {[%clk 0:01:04]} 31... Qc7 {[%clk 0:01:25]} 32. Ncd3
{[%clk 0:00:57.7]} 32... Ne4 {[%clk 0:01:24.7]} 33. Qb2 {[%clk 0:00:55.2]} 33...
Nd6 {[%clk 0:01:08.8]} 34. Ne5 {[%clk 0:00:46.5]} 34... Bf5 {[%clk 0:01:02.6]}
35. b5 {[%clk 0:00:40.3]} 35... f6 {[%clk 0:00:49.2]} 36. Nf3 {[%clk 0:00:34.3]}
36... Qb6 {[%clk 0:00:43.7]} 37. Ra2 {[%clk 0:00:29.2]} 37... Nc4 {[%clk
0:00:33.8]} 38. Qb4 {[%clk 0:00:29]} 38... Bxf4 {[%clk 0:00:30.5]} 39. exf4
{[%clk 0:00:27.5]} 39... Qxb5 {[%clk 0:00:29.3]} 40. Qc3 {[%clk 0:00:14.7]}
40... Qb1 {[%clk 0:00:26.7]} 41. Ra1 {[%clk 0:00:13.6]} 41... Qb2 {[%clk
0:00:26.7]} 42. Qxb2 {[%clk 0:00:11.6]} 42... Nxb2 {[%clk 0:00:27.2]} 43. Ra7
{[%clk 0:00:12.5]} 43... Re7 {[%clk 0:00:27.3]} 44. g4 {[%clk 0:00:12.4]} 44...
Bc8 {[%clk 0:00:24.2]} 45. g5 {[%clk 0:00:12.2]} 45... Nc4 {[%clk 0:00:15.1]}
46. gxf6+ {[%clk 0:00:11.7]} 46... Kxf6 {[%clk 0:00:15.2]} 47. Ne5 {[%clk
0:00:12.6]} 47... Nd6 {[%clk 0:00:15]} 48. Bd3 {[%clk 0:00:07]} 48... Bxh3
{[%clk 0:00:14.5]} 49. Kh2 {[%clk 0:00:07.1]} 49... Bf5 {[%clk 0:00:13.9]} 50.
Be2 {[%clk 0:00:07.2]} 50... Be6 {[%clk 0:00:12.9]} 51. Kg3 {[%clk 0:00:07.3]}
51... Nf5+ {[%clk 0:00:13.2]} 52. Kg2 {[%clk 0:00:07.8]} 52... Nxd4 {[%clk
0:00:14.1]} 53. Bd3 {[%clk 0:00:07.8]} 53... Bf5 {[%clk 0:00:14.2]} 54. Bf1
{[%clk 0:00:05.6]} 54... h5 {[%clk 0:00:13.8]} 55. Ra8 {[%clk 0:00:03.7]} 55...
Kg7 {[%clk 0:00:13.2]} 56. Rb8 {[%clk 0:00:03.1]} 56... h4 {[%clk 0:00:11.1]}
57. Kh2 {[%clk 0:00:02.6]} 57... Ne6 {[%clk 0:00:10.7]} 58. Bh3 {[%clk
0:00:02.7]} 58... Nxf4 {[%clk 0:00:10.9]} 59. Bxf5 {[%clk 0:00:02.8]} 59... Rxe5
{[%clk 0:00:09.5]} 60. Ra8 {[%clk 0:00:03.7]} 60... Rxf5 {[%clk 0:00:09]} 0-1

[Event "*** SCC Grand Prix: Titled Tuesday Blitz"]
[Site "Chess.com"]
[Date "2020.06.23"]
[Round "7"]
[White "KazakhFighter04"]
[Black "Gerodot71"]
[Result "1-0"]
[WhiteElo "2741"]
[BlackElo "2415"]
[TimeControl "180+1"]
[EndTime "11:18:28 PDT"]
[Termination "KazakhFighter04 won by resignation"]

1. e4 {[%clk 0:02:57.8]} 1... e5 {[%clk 0:02:59.8]} 2. Nf3 {[%clk 0:02:55.6]}
2... Nc6 {[%clk 0:03:00.1]} 3. d4 {[%clk 0:02:56.3]} 3... exd4 {[%clk
0:02:59.9]} 4. Nxd4 {[%clk 0:02:57.2]} 4... Bc5 {[%clk 0:02:59.8]} 5. Nxc6
{[%clk 0:02:55.6]} 5... bxc6 {[%clk 0:02:58.8]} 6. Bd3 {[%clk 0:02:51.7]} 6...
Nf6 {[%clk 0:02:54.1]} 7. O-O {[%clk 0:02:51.6]} 7... O-O {[%clk 0:02:52.5]} 8.
e5 {[%clk 0:02:49.8]} 8... Ne8 {[%clk 0:02:44.6]} 9. Nc3 {[%clk 0:02:47.7]} 9...
Be7 {[%clk 0:02:39.6]} 10. Qh5 {[%clk 0:02:06.2]} 10... f5 {[%clk 0:02:23.6]}
11. f4 {[%clk 0:01:53.1]} 11... d6 {[%clk 0:02:20.7]} 12. Kh1 {[%clk 0:01:51.3]}
12... Be6 {[%clk 0:02:17.2]} 13. Be3 {[%clk 0:01:42]} 13... g6 {[%clk
0:02:14.1]} 14. Qf3 {[%clk 0:01:40.9]} 14... c5 {[%clk 0:01:26.4]} 15. exd6
{[%clk 0:01:37.2]} 15... cxd6 {[%clk 0:01:25.9]} 16. Rfe1 {[%clk 0:01:33.6]}
16... Nc7 {[%clk 0:01:16]} 17. Rad1 {[%clk 0:01:23.4]} 17... Rb8 {[%clk
0:01:14.8]} 18. b3 {[%clk 0:01:21.2]} 18... Bf6 {[%clk 0:01:10.4]} 19. Bd2
{[%clk 0:01:07.5]} 19... d5 {[%clk 0:00:58.5]} 20. Na4 {[%clk 0:00:58.1]} 20...
Qd6 {[%clk 0:00:52.7]} 21. c4 {[%clk 0:00:48.5]} 21... d4 {[%clk 0:00:49.4]} 22.
Bf1 {[%clk 0:00:20.9]} 22... Rbe8 {[%clk 0:00:48.2]} 23. Qf2 {[%clk 0:00:15.7]}
23... Bd7 {[%clk 0:00:46]} 24. Nb2 {[%clk 0:00:15.1]} 24... Bc6 {[%clk
0:00:42.8]} 25. Be2 {[%clk 0:00:14.2]} 25... Be4 {[%clk 0:00:40.8]} 26. Bf3
{[%clk 0:00:14.6]} 26... Re7 {[%clk 0:00:30.7]} 27. Kg1 {[%clk 0:00:12.4]} 27...
Rfe8 {[%clk 0:00:30.5]} 28. Bc1 {[%clk 0:00:07.7]} 28... Qa6 {[%clk 0:00:27]}
29. Na4 {[%clk 0:00:05.2]} 29... Qc6 {[%clk 0:00:27.3]} 30. Re2 {[%clk
0:00:03.1]} 30... d3 {[%clk 0:00:16.6]} 31. Rxd3 {[%clk 0:00:03]} 31... Bxf3
{[%clk 0:00:14.2]} 32. Rxe7 {[%clk 0:00:02.5]} 32... Rxe7 {[%clk 0:00:14.7]} 33.
Qxf3 {[%clk 0:00:02]} 33... Bd4+ {[%clk 0:00:15.3]} 34. Kf1 {[%clk 0:00:01.9]}
34... Qe8 {[%clk 0:00:14]} 35. Bd2 {[%clk 0:00:01.8]} 35... Re4 {[%clk
0:00:13.5]} 36. Nc3 {[%clk 0:00:02.1]} 36... Bxc3 {[%clk 0:00:13.2]} 37. Bxc3
{[%clk 0:00:03]} 37... Ne6 {[%clk 0:00:14.1]} 38. g3 {[%clk 0:00:02.9]} 38...
Nd4 {[%clk 0:00:14.4]} 39. Bxd4 {[%clk 0:00:03.5]} 39... cxd4 {[%clk 0:00:15.3]}
40. Qd1 {[%clk 0:00:04.4]} 40... Qd7 {[%clk 0:00:14.4]} 41. Qd2 {[%clk
0:00:04.9]} 41... Qc6 {[%clk 0:00:13.6]} 42. Rxd4 {[%clk 0:00:04.3]} 42... Rxd4
{[%clk 0:00:14.5]} 43. Qxd4 {[%clk 0:00:05.2]} 43... Qh1+ {[%clk 0:00:15.2]} 44.
Ke2 {[%clk 0:00:05.8]} 44... Qxh2+ {[%clk 0:00:15.3]} 45. Qf2 {[%clk 0:00:06.4]}
45... Qh5+ {[%clk 0:00:14.9]} 46. Kd3 {[%clk 0:00:05.4]} 46... Qd1+ {[%clk
0:00:15.3]} 47. Kc3 {[%clk 0:00:06.3]} 47... Qc1+ {[%clk 0:00:14.9]} 48. Kb4
{[%clk 0:00:06.8]} 48... Qa1 {[%clk 0:00:12.1]} 49. c5 {[%clk 0:00:06.6]} 49...
Qf6 {[%clk 0:00:08.7]} 50. Qd2 {[%clk 0:00:05.1]} 50... Qa6 {[%clk 0:00:08.3]}
51. Qd5+ {[%clk 0:00:03.8]} 51... Kg7 {[%clk 0:00:07.3]} 52. c6 {[%clk
0:00:04.7]} 52... Qb6+ {[%clk 0:00:06.8]} 53. Kc4 {[%clk 0:00:05.3]} 53... a5
{[%clk 0:00:06]} 54. Qd4+ {[%clk 0:00:05.7]} 1-0